[Event "Titled Tuesday Blitz August 09 Late 2022"]
[White "Rasulov, Vugar"]
[Black "Goltsev, Dmitry"]
[WhiteFideId "13402390"]
[BlackFideId "24176710"]
[WhiteElo "2509"]
[BlackElo "2258"]
[Result "1/2-1/2"]
[Round "04"]
[TimeControl "180+1"]
[Date "2022.08.09"]
[WhiteClock "0:00:15"]
[BlackClock "0:00:48"]

1. d4 {[%clk 0:03:00]}  Nf6 {[%clk 0:02:59]} 2. c4 {[%clk 0:03:00]}  e6 {[%clk 0:03:00]} 3. Nf3 {[%clk 0:03:00]}  Bb4+ {[%clk 0:03:00]} 4. Bd2 {[%clk 0:03:00]}  Qe7 {[%clk 0:03:00]} 5. Nc3 {[%clk 0:02:59]}  Bxc3 {[%clk 0:03:00]} 6. Bxc3 {[%clk 0:02:58]}  Ne4 {[%clk 0:03:01]} 7. Rc1 {[%clk 0:02:58]}  b6 {[%clk 0:02:59]} 8. g3 {[%clk 0:02:58]}  Bb7 {[%clk 0:02:59]} 9. Bg2 {[%clk 0:02:58]}  Nxc3 {[%clk 0:02:59]} 10. Rxc3 {[%clk 0:02:57]}  d6 {[%clk 0:02:59]} 11. O-O {[%clk 0:02:57]}  Nd7 {[%clk 0:02:59]} 12. b4 {[%clk 0:02:55]}  a5 {[%clk 0:02:58]} 13. a3 {[%clk 0:02:55]}  axb4 {[%clk 0:02:59]} 14. axb4 {[%clk 0:02:56]}  O-O {[%clk 0:02:59]} 15. Qc2 {[%clk 0:02:56]}  f5 {[%clk 0:02:58]} 16. d5 {[%clk 0:02:46]}  e5 {[%clk 0:02:52]} 17. Qb2 {[%clk 0:02:43]}  Ra4 {[%clk 0:02:50]} 18. Ra1 {[%clk 0:02:42]}  Rfa8 {[%clk 0:02:50]} 19. Rxa4 {[%clk 0:02:41]}  Rxa4 {[%clk 0:02:50]} 20. Ra3 {[%clk 0:02:41]}  Rxa3 {[%clk 0:02:51]} 21. Qxa3 {[%clk 0:02:42]}  Qd8 {[%clk 0:02:51]} 22. e4 {[%clk 0:02:34]}  fxe4 {[%clk 0:02:46]} 23. Nd2 {[%clk 0:02:32]}  Qa8 {[%clk 0:02:41]} 24. Qxa8+ {[%clk 0:02:20]}  Bxa8 {[%clk 0:02:42]} 25. Nxe4 {[%clk 0:02:20]}  b5 {[%clk 0:02:37]} 26. c5 {[%clk 0:02:06]}  Bxd5 {[%clk 0:02:28]} 27. cxd6 {[%clk 0:02:05]}  cxd6 {[%clk 0:02:29]} 28. Nxd6 {[%clk 0:02:04]}  Bxg2 {[%clk 0:02:28]} 29. Kxg2 {[%clk 0:02:05]}  Nf6 {[%clk 0:02:25]} 30. Nxb5 {[%clk 0:02:01]}  Nd5 {[%clk 0:02:25]} 31. Kf3 {[%clk 0:02:02]}  Nxb4 {[%clk 0:02:23]} 32. Ke4 {[%clk 0:02:02]}  Kf7 {[%clk 0:02:24]} 33. Nc7 {[%clk 0:01:54]}  g6 {[%clk 0:02:07]} 34. f3 {[%clk 0:01:50]}  Kf6 {[%clk 0:01:25]} 35. h4 {[%clk 0:01:33]}  h5 {[%clk 0:01:09]} 36. g4 {[%clk 0:01:29]}  hxg4 {[%clk 0:01:05]} 37. fxg4 {[%clk 0:01:30]}  Nc6 {[%clk 0:01:05]} 38. g5+ {[%clk 0:01:22]}  Ke7 {[%clk 0:00:59]} 39. Nd5+ {[%clk 0:01:00]}  Kd6 {[%clk 0:00:51]} 40. Nf6 {[%clk 0:00:53]}  Ne7 {[%clk 0:00:48]} 41. Ne8+ {[%clk 0:00:39]}  Ke6 {[%clk 0:00:47]} 42. Nc7+ {[%clk 0:00:37]}  Kd6 {[%clk 0:00:47]} 43. Nb5+ {[%clk 0:00:37]}  Ke6 {[%clk 0:00:47]} 44. Nc7+ {[%clk 0:00:22]}  Kd6 {[%clk 0:00:47]} 45. Ne8+ {[%clk 0:00:22]}  Ke6 {[%clk 0:00:48]} 46. Nc7+ {[%clk 0:00:15]} 1/2-1/2


[Site "https://www.chess.com"]

[Event "Titled Tuesday Blitz August 09 Late 2022"]
[White "Schmakel, Sam"]
[Black "Terry, Renato"]
[WhiteFideId "2039311"]
[BlackFideId "3803457"]
[WhiteElo "2356"]
[BlackElo "2577"]
[Result "0-1"]
[Round "04"]
[TimeControl "180+1"]
[Date "2022.08.09"]
[WhiteClock "0:01:28"]
[BlackClock "0:00:29"]

1. d4 {[%clk 0:03:00]}  d5 {[%clk 0:02:58]} 2. c4 {[%clk 0:03:00]}  dxc4 {[%clk 0:02:57]} 3. Nf3 {[%clk 0:03:00]}  Nf6 {[%clk 0:02:57]} 4. e3 {[%clk 0:03:00]}  e6 {[%clk 0:02:57]} 5. Bxc4 {[%clk 0:03:01]}  a6 {[%clk 0:02:58]} 6. O-O {[%clk 0:03:00]}  c5 {[%clk 0:02:58]} 7. Be2 {[%clk 0:03:00]}  Nbd7 {[%clk 0:02:43]} 8. Nc3 {[%clk 0:02:54]}  b5 {[%clk 0:02:42]} 9. d5 {[%clk 0:02:42]}  e5 {[%clk 0:02:24]} 10. a4 {[%clk 0:02:38]}  b4 {[%clk 0:02:23]} 11. Nb1 {[%clk 0:02:39]}  Bb7 {[%clk 0:02:21]} 12. Bc4 {[%clk 0:02:23]}  e4 {[%clk 0:02:20]} 13. Nfd2 {[%clk 0:02:18]}  Ne5 {[%clk 0:02:18]} 14. a5 {[%clk 0:02:18]}  Nxc4 {[%clk 0:02:13]} 15. Nxc4 {[%clk 0:02:19]}  Qxd5 {[%clk 0:02:12]} 16. Qc2 {[%clk 0:02:15]}  Rd8 {[%clk 0:02:07]} 17. Nb6 {[%clk 0:02:08]}  Qe6 {[%clk 0:02:03]} 18. Nd2 {[%clk 0:02:06]}  Bd6 {[%clk 0:01:57]} 19. Qa4+ {[%clk 0:02:02]}  Ke7 {[%clk 0:01:55]} 20. Ndc4 {[%clk 0:02:01]}  Bxh2+ {[%clk 0:01:28]} 21. Kxh2 {[%clk 0:02:02]}  Ng4+ {[%clk 0:01:28]} 22. Kg1 {[%clk 0:01:37]}  Qh6 {[%clk 0:01:28]} 23. Re1 {[%clk 0:01:37]}  Bc6 {[%clk 0:01:20]} 24. Qc2 {[%clk 0:01:32]}  Qh2+ {[%clk 0:01:01]} 25. Kf1 {[%clk 0:01:32]}  Qh1+ {[%clk 0:01:02]} 26. Ke2 {[%clk 0:01:33]}  Qxg2 {[%clk 0:01:03]} 27. Rf1 {[%clk 0:01:31]}  Nh2 {[%clk 0:00:54]} 28. Bd2 {[%clk 0:01:28]}  Qg4+ {[%clk 0:00:32]} 29. f3 {[%clk 0:01:28]}  Qg2+ {[%clk 0:00:29]} 0-1


[Site "https://www.chess.com"]

[Event "Titled Tuesday Blitz August 09 Late 2022"]
[White "Suder, Jakub"]
[Black "Wagner, Dennis"]
[WhiteFideId "1195310"]
[BlackFideId "24650684"]
[WhiteElo "2095"]
[BlackElo "2355"]
[Result "0-1"]
[Round "04"]
[TimeControl "180+1"]
[Date "2022.08.09"]
[WhiteClock "0:00:03"]
[BlackClock "0:00:15"]

1. d4 {[%clk 0:03:00]}  d5 {[%clk 0:02:58]} 2. c4 {[%clk 0:03:01]}  e6 {[%clk 0:02:58]} 3. Nc3 {[%clk 0:03:01]}  Bb4 {[%clk 0:02:57]} 4. Qc2 {[%clk 0:02:59]}  dxc4 {[%clk 0:02:50]} 5. Nf3 {[%clk 0:02:58]}  Nf6 {[%clk 0:02:45]} 6. g3 {[%clk 0:02:44]}  b5 {[%clk 0:02:39]} 7. Bg2 {[%clk 0:02:44]}  Bb7 {[%clk 0:02:39]} 8. O-O {[%clk 0:02:44]}  a6 {[%clk 0:02:39]} 9. Re1 {[%clk 0:02:39]}  O-O {[%clk 0:02:23]} 10. e4 {[%clk 0:02:37]}  h6 {[%clk 0:02:21]} 11. a4 {[%clk 0:02:31]}  c6 {[%clk 0:02:09]} 12. Bd2 {[%clk 0:02:22]}  Be7 {[%clk 0:02:05]} 13. Rad1 {[%clk 0:02:13]}  Nbd7 {[%clk 0:02:06]} 14. Qc1 {[%clk 0:02:04]}  Re8 {[%clk 0:02:00]} 15. h4 {[%clk 0:01:51]}  Bf8 {[%clk 0:01:59]} 16. Ne5 {[%clk 0:01:43]}  Nxe5 {[%clk 0:01:55]} 17. dxe5 {[%clk 0:01:43]}  Nd7 {[%clk 0:01:48]} 18. Bf4 {[%clk 0:01:26]}  Qc7 {[%clk 0:01:48]} 19. g4 {[%clk 0:01:12]}  Nc5 {[%clk 0:01:12]} 20. Bf1 {[%clk 0:01:02]}  Rad8 {[%clk 0:01:10]} 21. Qe3 {[%clk 0:01:01]}  Nb3 {[%clk 0:00:58]} 22. h5 {[%clk 0:00:52]}  Bc5 {[%clk 0:00:57]} 23. Qg3 {[%clk 0:00:52]}  Be7 {[%clk 0:00:49]} 24. Kh1 {[%clk 0:00:45]}  Bg5 {[%clk 0:00:46]} 25. Bxg5 {[%clk 0:00:40]}  hxg5 {[%clk 0:00:47]} 26. f4 {[%clk 0:00:41]}  gxf4 {[%clk 0:00:45]} 27. Qxf4 {[%clk 0:00:41]}  Nd4 {[%clk 0:00:42]} 28. g5 {[%clk 0:00:32]}  c5 {[%clk 0:00:41]} 29. h6 {[%clk 0:00:24]}  Qe7 {[%clk 0:00:40]} 30. Re3 {[%clk 0:00:20]}  b4 {[%clk 0:00:40]} 31. Nb1 {[%clk 0:00:19]}  Nf5 {[%clk 0:00:37]} 32. Rxd8 {[%clk 0:00:12]}  Rxd8 {[%clk 0:00:38]} 33. Rh3 {[%clk 0:00:10]}  Rd1 {[%clk 0:00:38]} 34. Kg1 {[%clk 0:00:10]}  Nd4 {[%clk 0:00:34]} 35. Qh4 {[%clk 0:00:06]}  g6 {[%clk 0:00:25]} 36. h7+ {[%clk 0:00:06]}  Kh8 {[%clk 0:00:26]} 37. Qh6 {[%clk 0:00:06]}  Qd8 {[%clk 0:00:16]} 38. Kg2 {[%clk 0:00:02]}  Bxe4+ {[%clk 0:00:15]} 39. Kg1 {[%clk 0:00:02]}  Rxb1 {[%clk 0:00:15]} 40. Kf2 {[%clk 0:00:03]}  Rxb2+ {[%clk 0:00:14]} 41. Kg1 {[%clk 0:00:03]}  Nf3+ {[%clk 0:00:14]} 42. Rxf3 {[%clk 0:00:03]}  Bxf3 {[%clk 0:00:15]} 0-1


[Site "https://www.chess.com"]

[Event "Titled Tuesday Blitz August 09 Late 2022"]
[White "Svane, Frederik"]
[Black "Galperin, Platon"]
[WhiteFideId "12923044"]
[BlackFideId "14165414"]
[WhiteElo "2459"]
[BlackElo "2435"]
[Result "0-1"]
[Round "04"]
[TimeControl "180+1"]
[Date "2022.08.09"]
[WhiteClock "0:00:04"]
[BlackClock "0:00:13"]

1. c4 {[%clk 0:03:00]}  e6 {[%clk 0:02:59]} 2. Nf3 {[%clk 0:02:59]}  f5 {[%clk 0:02:59]} 3. Nc3 {[%clk 0:02:57]}  Nf6 {[%clk 0:02:58]} 4. d3 {[%clk 0:02:57]}  Bb4 {[%clk 0:02:56]} 5. Qb3 {[%clk 0:02:57]}  a5 {[%clk 0:02:53]} 6. a3 {[%clk 0:02:56]}  Bxc3+ {[%clk 0:02:54]} 7. Qxc3 {[%clk 0:02:57]}  a4 {[%clk 0:02:54]} 8. g3 {[%clk 0:02:54]}  b6 {[%clk 0:02:54]} 9. Bg2 {[%clk 0:02:54]}  Bb7 {[%clk 0:02:55]} 10. O-O {[%clk 0:02:55]}  O-O {[%clk 0:02:55]} 11. b3 {[%clk 0:02:45]}  axb3 {[%clk 0:02:55]} 12. Qxb3 {[%clk 0:02:46]}  Qe7 {[%clk 0:02:55]} 13. a4 {[%clk 0:02:44]}  Nc6 {[%clk 0:02:54]} 14. Qb2 {[%clk 0:02:12]}  d6 {[%clk 0:02:51]} 15. Nd4 {[%clk 0:02:09]}  Qe8 {[%clk 0:02:38]} 16. Bd2 {[%clk 0:01:59]}  Nxd4 {[%clk 0:02:25]} 17. Bxb7 {[%clk 0:01:49]}  Nxe2+ {[%clk 0:02:25]} 18. Kg2 {[%clk 0:01:49]}  e5 {[%clk 0:02:25]} 19. Be3 {[%clk 0:01:45]}  Ra7 {[%clk 0:02:16]} 20. Bf3 {[%clk 0:01:41]}  Nd4 {[%clk 0:02:06]} 21. Bxd4 {[%clk 0:01:41]}  exd4 {[%clk 0:02:06]} 22. Rfe1 {[%clk 0:01:42]}  Qd7 {[%clk 0:02:04]} 23. Qxd4 {[%clk 0:01:41]}  Rxa4 {[%clk 0:02:04]} 24. Rxa4 {[%clk 0:01:42]}  Qxa4 {[%clk 0:02:04]} 25. Re7 {[%clk 0:01:41]}  Qa7 {[%clk 0:01:43]} 26. Qxd6 {[%clk 0:01:21]}  cxd6 {[%clk 0:01:33]} 27. Rxa7 {[%clk 0:01:21]}  Rb8 {[%clk 0:01:33]} 28. Bc6 {[%clk 0:01:18]}  Kf8 {[%clk 0:01:31]} 29. Kf3 {[%clk 0:01:02]}  Rc8 {[%clk 0:01:19]} 30. Bb5 {[%clk 0:00:52]}  d5 {[%clk 0:01:16]} 31. Rb7 {[%clk 0:00:49]}  dxc4 {[%clk 0:01:14]} 32. dxc4 {[%clk 0:00:50]}  Ng4 {[%clk 0:01:10]} 33. Kf4 {[%clk 0:00:45]}  Rc5 {[%clk 0:01:04]} 34. f3 {[%clk 0:00:19]}  Nxh2 {[%clk 0:01:00]} 35. Rxb6 {[%clk 0:00:18]}  h6 {[%clk 0:01:00]} 36. Rc6 {[%clk 0:00:15]}  g5+ {[%clk 0:00:58]} 37. Ke3 {[%clk 0:00:16]}  Re5+ {[%clk 0:00:57]} 38. Kd4 {[%clk 0:00:15]}  Nxf3+ {[%clk 0:00:56]} 39. Kc3 {[%clk 0:00:16]}  h5 {[%clk 0:00:56]} 40. Rh6 {[%clk 0:00:14]}  h4 {[%clk 0:00:47]} 41. Bc6 {[%clk 0:00:14]}  hxg3 {[%clk 0:00:38]} 42. Bxf3 {[%clk 0:00:13]}  Re3+ {[%clk 0:00:39]} 43. Kd2 {[%clk 0:00:12]}  Rxf3 {[%clk 0:00:40]} 44. Rh1 {[%clk 0:00:05]}  f4 {[%clk 0:00:40]} 45. c5 {[%clk 0:00:05]}  Rf2+ {[%clk 0:00:35]} 46. Kd3 {[%clk 0:00:05]}  g2 {[%clk 0:00:22]} 47. Rg1 {[%clk 0:00:05]}  f3 {[%clk 0:00:22]} 48. c6 {[%clk 0:00:04]}  Ra2 {[%clk 0:00:22]} 49. c7 {[%clk 0:00:03]}  Ra8 {[%clk 0:00:22]} 50. Ke3 {[%clk 0:00:03]}  g4 {[%clk 0:00:22]} 51. Rd1 {[%clk 0:00:03]}  Rc8 {[%clk 0:00:17]} 52. Rd8+ {[%clk 0:00:01]}  Ke7 {[%clk 0:00:17]} 53. Rxc8 {[%clk 0:00:02]}  g1=Q+ {[%clk 0:00:17]} 54. Kf4 {[%clk 0:00:03]}  Kd7 {[%clk 0:00:15]} 55. Rg8 {[%clk 0:00:02]}  Kxc7 {[%clk 0:00:15]} 56. Rxg4 {[%clk 0:00:03]}  Qxg4+ {[%clk 0:00:13]} 57. Kxg4 {[%clk 0:00:04]} 0-1


[Site "https://www.chess.com"]

[Event "Titled Tuesday Blitz August 09 Late 2022"]
[White "Tanenbaum, Zachary"]
[Black "Navarrete Mendez, Gonzalo Alberto"]
[WhiteFideId "2060850"]
[BlackFideId "5106850"]
[WhiteElo "2175"]
[BlackElo "2261"]
[Result "1-0"]
[Round "04"]
[TimeControl "180+1"]
[Date "2022.08.09"]
[WhiteClock "0:00:56"]
[BlackClock "0:00:04"]

1. e4 {[%clk 0:03:00]}  e5 {[%clk 0:02:57]} 2. Nf3 {[%clk 0:03:00]}  Nc6 {[%clk 0:02:57]} 3. Bc4 {[%clk 0:03:01]}  Nf6 {[%clk 0:02:57]} 4. d3 {[%clk 0:03:02]}  Be7 {[%clk 0:02:57]} 5. O-O {[%clk 0:03:01]}  O-O {[%clk 0:02:57]} 6. Re1 {[%clk 0:03:01]}  d6 {[%clk 0:02:56]} 7. a4 {[%clk 0:03:02]}  Kh8 {[%clk 0:02:55]} 8. Nc3 {[%clk 0:03:01]}  Bg4 {[%clk 0:02:51]} 9. h3 {[%clk 0:03:00]}  Bh5 {[%clk 0:02:51]} 10. Be3 {[%clk 0:02:50]}  Qc8 {[%clk 0:02:51]} 11. Nd5 {[%clk 0:02:42]}  Nxd5 {[%clk 0:02:50]} 12. Bxd5 {[%clk 0:02:42]}  Nb4 {[%clk 0:02:50]} 13. Bb3 {[%clk 0:02:41]}  f5 {[%clk 0:02:49]} 14. exf5 {[%clk 0:02:24]}  Qxf5 {[%clk 0:02:50]} 15. c3 {[%clk 0:02:21]}  Nxd3 {[%clk 0:02:37]} 16. Bc2 {[%clk 0:02:06]}  e4 {[%clk 0:02:34]} 17. Bxd3 {[%clk 0:02:02]}  exd3 {[%clk 0:02:33]} 18. Nd4 {[%clk 0:02:00]}  Qf7 {[%clk 0:01:56]} 19. Qxd3 {[%clk 0:01:58]}  d5 {[%clk 0:01:48]} 20. Ne6 {[%clk 0:01:44]}  Bg6 {[%clk 0:01:06]} 21. Qxd5 {[%clk 0:01:36]}  Bd6 {[%clk 0:01:05]} 22. Rad1 {[%clk 0:01:21]}  Rfe8 {[%clk 0:00:49]} 23. Nxc7 {[%clk 0:01:17]}  Bh2+ {[%clk 0:00:11]} 24. Kxh2 {[%clk 0:01:14]}  Qxc7+ {[%clk 0:00:12]} 25. Kg1 {[%clk 0:01:13]}  Rad8 {[%clk 0:00:10]} 26. Qf3 {[%clk 0:01:10]}  Rxd1 {[%clk 0:00:09]} 27. Rxd1 {[%clk 0:01:11]}  h6 {[%clk 0:00:07]} 28. Qg4 {[%clk 0:01:02]}  Qf7 {[%clk 0:00:06]} 29. Rd7 {[%clk 0:00:58]}  Qf6 {[%clk 0:00:06]} 30. Bd4 {[%clk 0:00:57]}  Re1+ {[%clk 0:00:04]} 31. Kh2 {[%clk 0:00:56]} 1-0


[Site "https://www.chess.com"]

[Event "Titled Tuesday Blitz August 09 Late 2022"]
[White "Altman, Joshua"]
[Black "Llorente Zaro, Alfonso"]
[WhiteFideId "426210"]
[BlackFideId "2254131"]
[WhiteElo "1945"]
[BlackElo "2485"]
[Result "1/2-1/2"]
[Round "05"]
[TimeControl "180+1"]
[Date "2022.08.09"]
[WhiteClock "0:00:17"]
[BlackClock "0:00:09"]

1. d4 {[%clk 0:03:00]}  Nf6 {[%clk 0:02:46]} 2. c4 {[%clk 0:03:01]}  e6 {[%clk 0:02:46]} 3. Nf3 {[%clk 0:03:01]}  Bb4+ {[%clk 0:02:46]} 4. Nbd2 {[%clk 0:03:01]}  a5 {[%clk 0:02:47]} 5. g3 {[%clk 0:02:57]}  b6 {[%clk 0:02:47]} 6. Bg2 {[%clk 0:02:57]}  Ba6 {[%clk 0:02:44]} 7. Ne5 {[%clk 0:02:55]}  Ra7 {[%clk 0:02:44]} 8. O-O {[%clk 0:02:51]}  O-O {[%clk 0:02:43]} 9. Qc2 {[%clk 0:02:41]}  d6 {[%clk 0:02:39]} 10. Nd3 {[%clk 0:02:41]}  Bxd2 {[%clk 0:02:37]} 11. Bxd2 {[%clk 0:02:42]}  c5 {[%clk 0:02:37]} 12. dxc5 {[%clk 0:02:30]}  bxc5 {[%clk 0:02:36]} 13. b3 {[%clk 0:02:29]}  Bb7 {[%clk 0:02:34]} 14. Bxb7 {[%clk 0:02:24]}  Rxb7 {[%clk 0:02:34]} 15. Bc3 {[%clk 0:02:24]}  Nc6 {[%clk 0:02:30]} 16. Rad1 {[%clk 0:02:23]}  Nd7 {[%clk 0:02:22]} 17. Nf4 {[%clk 0:02:19]}  Qb8 {[%clk 0:02:11]} 18. Nh5 {[%clk 0:02:12]}  e5 {[%clk 0:02:06]} 19. Qf5 {[%clk 0:02:04]}  g6 {[%clk 0:01:46]} 20. Nf6+ {[%clk 0:02:00]}  Kg7 {[%clk 0:01:46]} 21. Nxd7 {[%clk 0:01:49]}  gxf5 {[%clk 0:01:45]} 22. Nxb8 {[%clk 0:01:49]}  Rfxb8 {[%clk 0:01:41]} 23. Rxd6 {[%clk 0:01:49]}  Rc8 {[%clk 0:01:42]} 24. f4 {[%clk 0:01:47]}  Nd4 {[%clk 0:01:39]} 25. Bxd4 {[%clk 0:01:45]}  exd4 {[%clk 0:01:38]} 26. Ra6 {[%clk 0:01:45]}  Re8 {[%clk 0:01:37]} 27. Rf2 {[%clk 0:01:44]}  Re3 {[%clk 0:01:30]} 28. Rxa5 {[%clk 0:01:42]}  Rc7 {[%clk 0:01:30]} 29. Rb5 {[%clk 0:01:36]}  Rc3 {[%clk 0:01:30]} 30. a4 {[%clk 0:01:30]}  Kg6 {[%clk 0:01:22]} 31. Rf3 {[%clk 0:01:23]}  Rc2 {[%clk 0:01:21]} 32. Rf2 {[%clk 0:01:21]}  f6 {[%clk 0:01:16]} 33. a5 {[%clk 0:01:16]}  Rb2 {[%clk 0:01:07]} 34. Rb6 {[%clk 0:00:55]}  Re7 {[%clk 0:01:00]} 35. a6 {[%clk 0:00:50]}  Re3 {[%clk 0:00:57]} 36. Rb5 {[%clk 0:00:41]}  Rexb3 {[%clk 0:00:42]} 37. Ra5 {[%clk 0:00:38]}  Rb8 {[%clk 0:00:33]} 38. Rxc5 {[%clk 0:00:37]}  Ra2 {[%clk 0:00:32]} 39. Rc6 {[%clk 0:00:35]}  Rbb2 {[%clk 0:00:32]} 40. Rd6 {[%clk 0:00:30]}  Rd2 {[%clk 0:00:28]} 41. c5 {[%clk 0:00:28]}  Rdc2 {[%clk 0:00:27]} 42. c6 {[%clk 0:00:28]}  Rxa6 {[%clk 0:00:27]} 43. Rxd4 {[%clk 0:00:27]}  Raxc6 {[%clk 0:00:25]} 44. Kg2 {[%clk 0:00:26]}  Rb6 {[%clk 0:00:24]} 45. Rd3 {[%clk 0:00:22]}  Rbb2 {[%clk 0:00:24]} 46. Re3 {[%clk 0:00:22]}  Ra2 {[%clk 0:00:24]} 47. Kf3 {[%clk 0:00:22]}  Ra1 {[%clk 0:00:20]} 48. h4 {[%clk 0:00:22]}  h5 {[%clk 0:00:18]} 49. Re8 {[%clk 0:00:21]}  Rb2 {[%clk 0:00:12]} 50. Rg8+ {[%clk 0:00:21]}  Kh7 {[%clk 0:00:12]} 51. Re8 {[%clk 0:00:21]}  Kg6 {[%clk 0:00:12]} 52. Re7 {[%clk 0:00:21]}  Rc2 {[%clk 0:00:12]} 53. Re3 {[%clk 0:00:21]}  Rb2 {[%clk 0:00:12]} 54. Rd3 {[%clk 0:00:21]}  Rc2 {[%clk 0:00:12]} 55. Ke3 {[%clk 0:00:21]}  Raa2 {[%clk 0:00:10]} 56. Kf3 {[%clk 0:00:17]}  Ra1 {[%clk 0:00:10]} 57. Re3 {[%clk 0:00:17]}  Rb1 {[%clk 0:00:09]} 58. Re6 {[%clk 0:00:17]}  Ra1 {[%clk 0:00:09]} 59. Re3 {[%clk 0:00:17]} 1/2-1/2


[Site "https://www.chess.com"]

[Event "Titled Tuesday Blitz August 09 Late 2022"]
[White "Arnold, Ken"]
[Black "Matinian, Nikita"]
[WhiteFideId "2056836"]
[BlackFideId "24129100"]
[WhiteElo "2346"]
[BlackElo "2422"]
[Result "0-1"]
[Round "05"]
[TimeControl "180+1"]
[Date "2022.08.09"]
[WhiteClock "0:00:36"]
[BlackClock "0:02:02"]

1. d4 {[%clk 0:02:01]}  d6 {[%clk 0:03:00]} 2. c4 {[%clk 0:01:58]}  g6 {[%clk 0:03:01]} 3. Nc3 {[%clk 0:01:59]}  Bg7 {[%clk 0:03:01]} 4. e4 {[%clk 0:01:59]}  Nc6 {[%clk 0:03:01]} 5. Nf3 {[%clk 0:02:00]}  Bg4 {[%clk 0:03:01]} 6. Be3 {[%clk 0:02:00]}  e5 {[%clk 0:03:00]} 7. d5 {[%clk 0:02:00]}  Nd4 {[%clk 0:03:00]} 8. Be2 {[%clk 0:02:00]}  Nxe2 {[%clk 0:03:00]} 9. Qxe2 {[%clk 0:02:00]}  f5 {[%clk 0:03:00]} 10. h3 {[%clk 0:01:59]}  Bh5 {[%clk 0:02:59]} 11. exf5 {[%clk 0:01:56]}  gxf5 {[%clk 0:03:00]} 12. g4 {[%clk 0:01:55]}  fxg4 {[%clk 0:02:50]} 13. hxg4 {[%clk 0:01:55]}  Bxg4 {[%clk 0:02:48]} 14. Rg1 {[%clk 0:01:53]}  Qd7 {[%clk 0:02:43]} 15. O-O-O {[%clk 0:01:49]}  h5 {[%clk 0:02:40]} 16. Ne4 {[%clk 0:01:47]}  Nf6 {[%clk 0:02:39]} 17. Nxf6+ {[%clk 0:01:47]}  Bxf6 {[%clk 0:02:39]} 18. Rg3 {[%clk 0:01:41]}  Qa4 {[%clk 0:02:37]} 19. b3 {[%clk 0:01:37]}  Qa3+ {[%clk 0:02:37]} 20. Qb2 {[%clk 0:01:28]}  Qxb2+ {[%clk 0:02:20]} 21. Kxb2 {[%clk 0:01:26]}  Kd7 {[%clk 0:02:19]} 22. Rdg1 {[%clk 0:01:22]}  a5 {[%clk 0:02:15]} 23. Kc1 {[%clk 0:01:11]}  a4 {[%clk 0:02:15]} 24. b4 {[%clk 0:01:10]}  e4 {[%clk 0:02:11]} 25. Nh2 {[%clk 0:01:08]}  Be5 {[%clk 0:02:12]} 26. Nxg4 {[%clk 0:00:41]}  Bxg3 {[%clk 0:02:01]} 27. Nf6+ {[%clk 0:00:40]}  Ke7 {[%clk 0:02:01]} 28. Rxg3 {[%clk 0:00:41]}  Kxf6 {[%clk 0:02:02]} 29. Bd4+ {[%clk 0:00:40]}  Kf5 {[%clk 0:02:01]} 30. Bxh8 {[%clk 0:00:36]}  Rxh8 {[%clk 0:02:02]} 0-1


[Site "https://www.chess.com"]

[Event "Titled Tuesday Blitz August 09 Late 2022"]
[White "Bjelobrk, Igor"]
[Black "Yanchenko, Roman"]
[WhiteFideId "4300726"]
[BlackFideId "4137329"]
[WhiteElo "2335"]
[BlackElo "2514"]
[Result "0-1"]
[Round "05"]
[TimeControl "180+1"]
[Date "2022.08.09"]
[WhiteClock "0:00:32"]
[BlackClock "0:02:12"]

1. Nf3 {[%clk 0:00:55]}  d5 {[%clk 0:02:46]} 2. d4 {[%clk 0:00:54]}  Nf6 {[%clk 0:02:46]} 3. e3 {[%clk 0:00:55]}  Bf5 {[%clk 0:02:46]} 4. c4 {[%clk 0:00:53]}  c6 {[%clk 0:02:47]} 5. Nc3 {[%clk 0:00:53]}  e6 {[%clk 0:02:47]} 6. Nh4 {[%clk 0:00:53]}  Be4 {[%clk 0:02:47]} 7. f3 {[%clk 0:00:53]}  Bg6 {[%clk 0:02:47]} 8. g3 {[%clk 0:00:53]}  Nbd7 {[%clk 0:02:47]} 9. Qb3 {[%clk 0:00:52]}  Qb6 {[%clk 0:02:47]} 10. Nxg6 {[%clk 0:00:52]}  hxg6 {[%clk 0:02:47]} 11. Bd2 {[%clk 0:00:53]}  Bd6 {[%clk 0:02:47]} 12. O-O-O {[%clk 0:00:53]}  Bxg3 {[%clk 0:02:41]} 13. Bd3 {[%clk 0:00:51]}  Bd6 {[%clk 0:02:32]} 14. Qc2 {[%clk 0:00:49]}  dxc4 {[%clk 0:02:31]} 15. Bxc4 {[%clk 0:00:49]}  Qc7 {[%clk 0:02:20]} 16. h3 {[%clk 0:00:48]}  a5 {[%clk 0:02:19]} 17. Kb1 {[%clk 0:00:48]}  a4 {[%clk 0:02:14]} 18. a3 {[%clk 0:00:39]}  b5 {[%clk 0:02:14]} 19. Bd3 {[%clk 0:00:37]}  b4 {[%clk 0:02:14]} 20. Nb5 {[%clk 0:00:32]}  cxb5 {[%clk 0:02:12]} 0-1


[Site "https://www.chess.com"]

[Event "Titled Tuesday Blitz August 09 Late 2022"]
[White "Claridge-Hansen, William"]
[Black "Kosteniuk, Alexandra"]
[WhiteFideId "422509"]
[BlackFideId "4128125"]
[WhiteElo "2261"]
[BlackElo "2469"]
[Result "0-1"]
[Round "05"]
[TimeControl "180+1"]
[Date "2022.08.09"]
[WhiteClock "0:00:01"]
[BlackClock "0:00:48"]

1. c4 {[%clk 0:03:00]}  e5 {[%clk 0:02:59]} 2. g3 {[%clk 0:03:01]}  Nf6 {[%clk 0:02:59]} 3. Bg2 {[%clk 0:03:02]}  d5 {[%clk 0:03:00]} 4. cxd5 {[%clk 0:03:02]}  Nxd5 {[%clk 0:03:00]} 5. Nf3 {[%clk 0:03:02]}  Nc6 {[%clk 0:03:00]} 6. O-O {[%clk 0:03:01]}  Nb6 {[%clk 0:02:59]} 7. b3 {[%clk 0:03:01]}  Be7 {[%clk 0:03:00]} 8. Bb2 {[%clk 0:03:01]}  f6 {[%clk 0:03:00]} 9. Nc3 {[%clk 0:02:53]}  O-O {[%clk 0:02:59]} 10. Qc1 {[%clk 0:02:50]}  Bf5 {[%clk 0:02:55]} 11. d3 {[%clk 0:02:32]}  Qc8 {[%clk 0:02:51]} 12. Rd1 {[%clk 0:02:22]}  Rd8 {[%clk 0:02:47]} 13. Nh4 {[%clk 0:01:58]}  Bh3 {[%clk 0:02:42]} 14. Bxc6 {[%clk 0:01:53]}  bxc6 {[%clk 0:02:42]} 15. Nf3 {[%clk 0:01:53]}  a5 {[%clk 0:02:26]} 16. Ne4 {[%clk 0:01:48]}  Qe6 {[%clk 0:02:21]} 17. Ba3 {[%clk 0:01:37]}  Nd5 {[%clk 0:02:08]} 18. Bxe7 {[%clk 0:01:35]}  Nxe7 {[%clk 0:02:08]} 19. Qc4 {[%clk 0:01:27]}  Qd5 {[%clk 0:02:02]} 20. Nc3 {[%clk 0:01:23]}  Qf7 {[%clk 0:01:48]} 21. Qxf7+ {[%clk 0:01:21]}  Kxf7 {[%clk 0:01:49]} 22. Rdc1 {[%clk 0:00:59]}  h6 {[%clk 0:01:47]} 23. Na4 {[%clk 0:00:50]}  Rd5 {[%clk 0:01:43]} 24. Rc4 {[%clk 0:00:48]}  g5 {[%clk 0:01:38]} 25. Rac1 {[%clk 0:00:46]}  h5 {[%clk 0:01:36]} 26. Rc5 {[%clk 0:00:41]}  Bd7 {[%clk 0:01:30]} 27. Nd2 {[%clk 0:00:31]}  h4 {[%clk 0:01:29]} 28. Rxd5 {[%clk 0:00:20]}  Nxd5 {[%clk 0:01:28]} 29. Nc5 {[%clk 0:00:19]}  Be8 {[%clk 0:01:21]} 30. Nc4 {[%clk 0:00:16]}  h3 {[%clk 0:01:18]} 31. Ne4 {[%clk 0:00:11]}  a4 {[%clk 0:01:14]} 32. bxa4 {[%clk 0:00:11]}  Rxa4 {[%clk 0:01:14]} 33. Rc2 {[%clk 0:00:11]}  Nb4 {[%clk 0:01:12]} 34. Rb2 {[%clk 0:00:12]}  Rxa2 {[%clk 0:01:11]} 35. Rxa2 {[%clk 0:00:10]}  Nxa2 {[%clk 0:01:11]} 36. f3 {[%clk 0:00:07]}  Nb4 {[%clk 0:01:10]} 37. Kf2 {[%clk 0:00:07]}  Nd5 {[%clk 0:01:11]} 38. Ne3 {[%clk 0:00:07]}  Bd7 {[%clk 0:01:08]} 39. g4 {[%clk 0:00:07]}  Bc8 {[%clk 0:01:06]} 40. Nxd5 {[%clk 0:00:05]}  cxd5 {[%clk 0:01:06]} 41. Ng3 {[%clk 0:00:05]}  c5 {[%clk 0:01:04]} 42. Ke3 {[%clk 0:00:05]}  d4+ {[%clk 0:00:59]} 43. Ke4 {[%clk 0:00:02]}  Bb7+ {[%clk 0:00:50]} 44. Kf5 {[%clk 0:00:02]}  Bd5 {[%clk 0:00:47]} 45. Nh1 {[%clk 0:00:01]}  c4 {[%clk 0:00:47]} 46. dxc4 {[%clk 0:00:01]}  Bxc4 {[%clk 0:00:48]} 0-1


[Site "https://www.chess.com"]